bitfinex-derivatives/quotes_ETHF0:USTF0_20250421
["timestamp","ask_amount","ask_price","bid_price","bid_amount"]
[1745213205489,2.98732,1640.6,1640.5,1.21923]
[1745213205788,1.7681,1640.6,1640.5,1.21923]
[1745213208091,4.0321,1640.6,1640.5,1.21923]
[1745213209183,1.7681,1640.6,1640.5,1.21923]
[1745213210187,1.21938,1640.3,1640.2,0.00914104]
[1745213210889,3.81818,1640.3,1640.2,0.00914104]
[1745213211089,6.08218,1640.3,1640.2,0.00914104]
[1745213212293,3.81818,1640.3,1640.2,0.00914104]
[1745213212987,10.64731,1640.3,1639.8,20.16805807]
[1745213213191,3.2078,1640.1,1639.9,1.21965]
[1745213213393,2.5988,1640.0,1639.9,1.21965]
[1745213214089,1.21968,1639.9,1639.8,1.22885104]
[1745213214294,2.4995,1639.9,1639.8,1.22885104]
[1745213219291,2.4995,1639.9,1639.8,2.93875104]
[1745213219491,0.00914104,1640.0,1639.9,1.21968]
[1745213219701,0.00914104,1640.0,1639.9,7.84368]
[1745213220093,0.00914104,1640.0,1639.9,10.10768]
[1745213220399,0.00914104,1640.0,1639.9,6.89988]
[1745213222201,0.00914104,1640.0,1639.9,4.63588]
[1745213222701,0.00914104,1640.0,1639.9,7.84368]
[1745213223602,0.00914104,1640.0,1639.9,4.63588]
[1745213223799,0.00914104,1640.0,1639.9,7.84368]
[1745213225204,0.00914104,1640.0,1639.9,10.10768]
[1745213225806,1e-08,1640.0,1639.9,15.10768]
[1745213226205,1e-08,1640.0,1639.9,12.84368]
[1745213229207,1e-08,1640.0,1639.9,15.10768]
[1745213235309,1e-08,1640.0,1639.9,12.84368]
[1745213235505,1e-08,1640.0,1639.9,7.84368]
[1745213236204,2.26400001,1640.0,1639.9,6.98468]
[1745213236402,2.26400001,1640.0,1639.9,4.42748]
[1745213237009,3.94980001,1640.0,1639.9,4.42748]
[1745213237212,1.68580001,1640.0,1639.9,4.42748]
[1745213238511,1.68580001,1640.0,1639.9,6.03758]
[1745213239703,1.68580001,1640.0,1639.9,4.42748]
[1745213242714,1.68580001,1640.0,1639.9,1.21968]
[1745213244611,1.68580001,1640.0,1639.9,4.42748]
[1745213245503,3.46040001,1640.0,1639.9,4.42748]
[1745213245921,4.68000001,1640.0,1639.8,1.22887104]
[1745213246212,1.7746,1639.9,1639.8,1.22887104]
[1745213255420,1.7746,1639.9,1639.8,3.00477104]
[1745213255913,1.68580001,1640.0,1639.9,1.21968]
[1745213256121,0.83930001,1640.0,1639.9,7.01908]
[1745213256505,1e-08,1640.0,1639.9,7.01908]
[1745213257318,1e-08,1640.0,1639.9,12.01908]
[1745213258117,1e-08,1640.0,1639.9,8.81128]
[1745213258319,1e-08,1640.0,1639.9,12.01908]
[1745213258910,1e-08,1640.0,1639.9,7.01908]
[1745213260922,1e-08,1640.0,1639.9,12.01908]
[1745213261219,1e-08,1640.0,1639.9,14.28308]
[1745213263122,1e-08,1640.0,1639.9,9.28308]
[1745213264125,1e-08,1640.0,1639.9,7.01908]
[1745213273237,1e-08,1640.0,1639.9,9.28308]
[1745213274138,1e-08,1640.0,1639.9,7.01908]
[1745213276133,1e-08,1640.0,1639.9,9.28308]
[1745213277137,1e-08,1640.0,1639.9,7.01908]
[1745213281339,1.71400001,1640.0,1639.9,7.01908]
[1745213282142,1.71400001,1640.0,1639.9,4.42748]
[1745213282442,1.71400001,1640.0,1639.9,5.22978]
[1745213283038,1.71400001,1640.0,1639.9,6.94818]
[1745213284345,1e-08,1640.0,1639.9,6.94818]
[1745213296952,1.74760001,1640.0,1639.9,6.94818]
[1745213299351,1.74760001,1640.0,1639.9,4.42748]
[1745213303047,1.74760001,1640.0,1639.9,6.18658]
[1745213305655,1e-08,1640.0,1639.9,6.18658]
[1745213310160,1e-08,1640.0,1639.9,8.45058]
[1745213311261,1e-08,1640.0,1639.9,6.18658]
[1745213312256,1e-08,1640.0,1639.9,14.23712187]
[1745213313757,1e-08,1640.0,1639.9,11.02932187]
[1745213313970,1e-08,1640.0,1639.9,14.23712187]
[1745213319556,1e-08,1640.0,1639.9,23.65846477]
[1745213320062,1e-08,1640.0,1639.9,20.45066477]
[1745213320362,1e-08,1640.0,1639.9,23.65846477]
[1745213323263,1e-08,1640.0,1639.9,14.23712187]
[1745213329670,1e-08,1640.0,1639.9,23.65970944]
[1745213330767,2.60830001,1640.0,1639.9,21.90060944]
[1745213333063,2.60830001,1640.0,1639.9,12.47802187]
[1745213337264,2.60830001,1640.0,1639.9,4.42748]
[1745213338371,1.75800001,1640.0,1639.9,4.42748]
[1745213338559,1.75800001,1640.0,1639.9,6.96788]
[1745213338972,1e-08,1640.0,1639.9,6.96788]
[1745213341174,1e-08,1640.0,1639.9,9.23188]
[1745213341473,1e-08,1640.0,1639.9,17.28242187]
[1745213341773,1e-08,1640.0,1639.9,28.16642187]
[1745213342071,1e-08,1640.0,1639.9,23.16642187]
[1745213344580,1e-08,1640.0,1639.9,36.65324033]
[1745213345576,0.8323,1640.3,1640.2,1.21946]
[1745213345771,0.8323,1640.3,1640.2,8.39726]
[1745213346480,0.8323,1640.3,1640.2,10.04446]
[1745213347180,2.5051,1640.3,1640.2,10.04446]
[1745213350378,0.00914104,1640.4,1640.3,1.21938]
[1745213350583,0.00914104,1640.4,1640.3,3.73508]
[1745213351172,0.00914104,1640.4,1640.3,5.99908]
[1745213352188,0.00914104,1640.4,1640.3,3.73508]
[1745213356785,0.00914104,1640.4,1640.3,6.94288]
[1745213357083,6.090706,1640.9,1640.8,1.21901]
[1745213357388,6.955806,1640.9,1640.8,4.42681]
[1745213359392,0.8651,1640.9,1640.8,4.42681]
[1745213360299,1.6686,1640.9,1640.8,4.42681]
[1745213365190,7.8876,1640.9,1640.7,0.00914104]
[1745213365386,1.6378,1640.8,1640.7,0.00914104]
[1745213365891,6.6378,1640.8,1640.7,0.00914104]
[1745213366190,6.6378,1640.8,1640.7,1.22822104]
[1745213370095,1.6378,1640.8,1640.7,1.22822104]
[1745213376092,1.6378,1640.8,1640.7,2.94552104]
[1745213381387,1.6378,1640.8,1640.7,6.15332104]
[1745213382304,1.6686,1640.9,1640.8,1.21901]
[1745213385703,1.6686,1640.9,1640.8,4.42681]
[1745213389205,3.9326,1640.9,1640.8,4.42681]
[1745213389496,5.6955,1640.9,1640.8,1.21901]
[1745213392197,3.4315,1640.9,1640.8,1.21901]
[1745213396204,5.6955,1640.9,1640.8,1.21901]
[1745213397106,3.4315,1640.9,1640.8,1.21901]
[1745213397499,2.5664,1640.9,1640.8,1.21901]
[1745213397695,2.5664,1640.9,1640.8,4.51731]
[1745213397894,1.7629,1640.9,1640.8,4.51731]
[1745213398099,6.977206,1641.0,1640.9,1.21894]
[1745213398302,8.630606,1641.0,1640.9,2.84374]
[1745213401614,2.5399,1641.0,1640.9,2.84374]
[1745213401817,1.6534,1641.0,1640.9,6.05154]
[1745213403915,2.5002,1641.0,1640.9,6.05154]
[1745213405114,1.6534,1641.0,1640.9,2.84374]
[1745213405317,6.090706,1641.1,1641.0,1.21886]
[1745213405622,6.090706,1641.2,1641.1,1.21879]
[1745213405917,9.928756,1641.2,1641.0,3.81514]
[1745213406116,2.5955,1641.1,1641.0,1.21884]
[1745213408515,2.5955,1641.1,1641.0,2.82194]
[1745213409322,6.090706,1641.2,1641.1,1.21879]
[1745213409623,7.830506,1641.2,1641.1,2.04349]
[1745213413024,1.7398,1641.2,1641.1,2.04349]
[1745213415426,8.94646253,1641.3,1641.2,1.21871]
[1745213415626,6.974306,1641.3,1641.2,2.85161]
[1745213415829,9.527306,1641.3,1641.2,2.85161]
[1745213416223,7.760706,1641.3,1641.2,2.85161]
[1745213417028,8.625606,1641.3,1641.2,2.85161]
[1745213418727,6.090706,1641.3,1641.2,2.85161]
[1745213418922,6.090706,1641.3,1641.2,7.85161]
[1745213419127,6.090706,1641.3,1641.2,5.11561]
[1745213420037,7.818306,1641.3,1641.2,5.11561]
[1745213420240,7.818306,1641.3,1641.2,2.85161]
[1745213420741,1.7276,1641.3,1641.2,2.85161]
[1745213422336,2.5991,1641.3,1641.2,2.85161]
[1745213423635,2.5991,1641.3,1641.1,6.11423]
[1745213423832,2.6321,1641.2,1641.1,1.21873]
[1745213424236,4.8961,1641.2,1641.1,1.21873]
[1745213425240,2.6321,1641.2,1641.1,1.21873]
[1745213428538,7.6321,1641.2,1640.8,3.2078]
[1745213428847,8.83688653,1641.1,1640.9,1.21891]
[1745213429143,2.5301,1641.0,1640.9,1.21891]
[1745213429337,3.3343,1641.0,1640.9,1.21891]
[1745213429742,6.5421,1641.0,1640.7,0.00914104]
[1745213429939,1.21901,1640.8,1640.7,0.00914104]
[1745213430139,9.41816653,1640.8,1640.7,0.00914104]
[1745213431141,12.62596653,1640.8,1640.7,0.00914104]
[1745213432742,17.62596653,1640.8,1640.7,0.00914104]
[1745213433044,1.21916,1640.6,1640.5,8.0949247]
[1745213433546,6.21916,1640.6,1640.5,8.0949247]
[1745213433737,8.84336,1640.6,1640.5,8.0949247]
[1745213433939,3.84336,1640.6,1640.5,8.0949247]
[1745213434148,6.10736,1640.6,1640.5,8.0949247]
[1745213434348,1.21923,1640.5,1640.4,0.00914104]
[1745213434645,2.99323,1640.5,1640.4,0.00914104]
[1745213434846,5.738,1640.5,1640.4,1.22845104]
[1745213435747,6.95723,1640.5,1640.4,0.00914104]
[1745213436133,9.22123,1640.5,1640.4,0.00914104]
[1745213437245,6.95723,1640.5,1640.4,0.00914104]
[1745213437638,8.92938653,1640.5,1640.4,0.00914104]
[1745213438241,11.19338653,1640.5,1640.4,0.00914104]
[1745213439542,11.19338653,1640.5,1640.4,1e-08]
[1745213442348,16.19338653,1640.5,1640.4,1e-08]
[1745213445853,19.40118653,1640.5,1640.4,1e-08]
[1745213446148,14.40118653,1640.5,1640.4,1e-08]
[1745213447448,19.40118653,1640.5,1640.4,1e-08]
[1745213448649,19.5106114,1640.5,1640.4,1e-08]
[1745213448846,19.40118653,1640.5,1640.4,1e-08]
[1745213449050,19.51061194,1640.5,1640.4,1e-08]
[1745213449249,14.40118653,1640.5,1640.4,1e-08]
[1745213450848,10.43718653,1640.5,1640.4,1e-08]
[1745213451152,14.40118653,1640.5,1640.4,1e-08]
[1745213456145,15.27058653,1640.5,1640.4,1e-08]
[1745213457854,3.04859,1640.3,1639.6,3.2078]
[1745213458051,10.22146,1640.2,1639.8,3.77523]
[1745213458254,1.21968,1640.0,1639.9,2.561]
[1745213458455,3.19172653,1640.1,1639.9,2.561]
[1745213458648,3.19172653,1640.1,1640.0,1.731]
[1745213458949,7.15672653,1640.1,1640.0,1.731]
[1745213459350,1.97215653,1640.1,1640.0,2.9506]
[1745213459547,5.93715653,1640.1,1640.0,2.9506]
[1745213459855,7.15668653,1640.1,1640.0,2.9506]
[1745213461954,5.93715653,1640.1,1640.0,2.9506]
[1745213463459,5.93715653,1640.1,1640.0,7.9506]
[1745213463958,3.965,1640.1,1640.0,7.9506]
[1745213464151,1.97215653,1640.3,1640.2,1.21946]
[1745213464359,5.93715653,1640.3,1640.2,1.21946]
[1745213464748,5.93715653,1640.3,1640.2,2.89096]
[1745213464954,1.97215653,1640.3,1640.2,2.89096]
[1745213465154,5.93715653,1640.3,1640.2,2.89096]
[1745213465461,7.15653653,1640.3,1640.2,2.89096]
[1745213465660,7.15653653,1640.3,1640.2,1.6715]
[1745213468363,3.19153653,1640.3,1640.2,1.6715]
[1745213468562,7.15653653,1640.3,1640.2,1.6715]
[1745213469061,7.15653653,1640.3,1640.2,2.89096]
[1745213469368,1.21946,1640.2,1640.1,0.8601]
[1745213469561,4.71226,1640.2,1640.1,0.8601]
[1745213470364,7.92006,1640.2,1640.1,0.8601]
[1745213472363,1.21953,1640.1,1640.0,1.7615]
[1745213472564,2.89193,1640.1,1640.0,3.8026]
[1745213473062,2.89193,1640.1,1640.0,2.583]
[1745213473267,1.2196,1640.0,1639.9,0.00914104]
[1745213473464,10.9299,1640.0,1639.9,0.00914104]
[1745213473868,9.7103,1640.0,1639.6,1.21985]
[1745213474068,1.21986,1639.7,1639.6,2.56]
[1745213474267,5.18486,1639.7,1639.6,2.56]
[1745213475466,1.2199,1639.6,1639.5,0.00914104]
[1745213475666,9.80965653,1639.6,1639.5,0.00219224]
[1745213476264,12.07365653,1639.6,1639.5,0.00219224]
[1745213479173,1.21998,1639.5,1639.4,0.8798]
[1745213479376,1.22005,1639.4,1639.3,2.5529]
[1745213479572,5.18605,1639.4,1639.1,2.10152]
[1745213479772,1.6166,1639.3,1639.2,1.7515]
[1745213480172,2.83673,1639.3,1639.2,1.7515]
[1745213481172,5.10073,1639.3,1639.2,1.7515]
[1745213482484,1.2202,1639.2,1639.1,0.00914104]
[1745213482784,1.22042,1639.0,1638.8,3.3841]
[1745213482987,5.18542,1638.9,1638.8,1.6853]
[1745213483188,9.08282,1638.9,1638.8,1.6853]
[1745213483391,8.7264,1638.9,1638.5,8.0949247]
[1745213483585,2.85392,1638.8,1638.6,3.79911]
[1745213483791,2.85392,1638.8,1638.7,1.6988]
[1745213484182,1.22065,1638.6,1638.5,8.10406574]
[1745213484381,5.18565,1638.6,1638.5,8.10406574]
[1745213484589,5.18565,1638.6,1638.5,9.80286574]
[1745213484795,6.81905,1638.6,1638.5,9.80286574]
[1745213486393,6.82005,1638.6,1638.5,9.80286574]
[1745213486785,6.82005,1638.6,1638.5,1.70794104]
[1745213489289,3.966,1638.6,1638.5,2.92866104]
[1745213489479,5.70618653,1638.7,1638.5,2.92866104]
[1745213489684,5.70618653,1638.7,1638.6,1.7133]
[1745213489881,9.67218653,1638.7,1638.6,1.7133]
[1745213490290,1.22065,1638.6,1638.5,0.00914104]
[1745213490595,2.84755,1638.6,1638.5,0.00914104]
[1745213490783,1.6269,1638.6,1638.5,2.94316104]
[1745213490983,6.81355,1638.6,1638.5,1.72244104]
[1745213491189,2.84755,1638.6,1638.5,0.00914104]
[1745213491486,6.81355,1638.6,1638.5,0.00914104]
[1745213492191,7.61645,1638.6,1638.5,0.00914104]
[1745213492893,10.82425,1638.6,1638.5,0.00914104]
[1745213493197,15.06040653,1638.6,1638.5,1e-08]
[1745213493695,20.06040653,1638.6,1638.5,1e-08]
[1745213494086,17.79640653,1638.6,1638.5,1e-08]
[1745213494487,12.79640653,1638.6,1638.5,1e-08]
[1745213496989,1.22094,1638.2,1638.1,2.5502]
[1745213497194,1.22102,1638.1,1638.0,0.8503]
[1745213497394,2.84242,1638.1,1638.0,0.8503]
[1745213497592,2.84242,1638.1,1638.0,2.5737]
[1745213499098,2.84242,1638.1,1638.0,2.264]
[1745213500398,2.84242,1638.1,1638.0,3.9874]
[1745213500594,4.8493,1638.3,1638.0,3.9874]
[1745213500898,98.09588653,1638.6,1638.1,4.9162]
[1745213500899,3.19286653,1638.6,1638.1,4.9162]
[1745213501101,3.06031104,1638.9,1638.4,3.2078]
[1745213501102,4.43740104,1638.9,1638.4,3.2078]
[1745213501300,1.2205,1638.8,1638.5,3.72937]
[1745213501499,1.22057,1638.7,1638.6,0.8792]
[1745213501700,5.18857,1638.7,1638.6,0.8792]
[1745213501892,5.6046,1638.7,1638.6,2.5876]
[1745213502293,3.968,1638.7,1638.6,3.80825]
[1745213504003,1.97215653,1638.8,1638.7,1.22057]
[1745213504204,5.94015653,1638.8,1638.7,2.96867]
[1745213504391,7.16065653,1638.8,1638.7,1.7481]
[1745213504596,8.83495653,1638.8,1638.6,0.8792]
[1745213504901,8.83495653,1638.8,1638.6,2.6273]
[1745213505101,4.86695653,1638.8,1638.6,2.6273]
[1745213505301,3.968,1638.7,1638.6,2.6273]
[1745213505708,5.18857,1638.7,1638.6,2.6273]
[1745213505906,6.86287,1638.7,1638.6,2.6273]
[1745213510906,5.18857,1638.7,1638.6,2.6273]
[1745213512903,6.91157,1638.7,1638.6,2.6273]
[1745213513808,1.22065,1638.6,1638.5,0.8003]
[1745213514119,3.74865,1638.6,1638.5,1.6785]
[1745213515009,3.74865,1638.6,1638.5,3.2804]
[1745213516211,1.723,1638.6,1638.5,4.50112]
[1745213516413,5.99433,1638.7,1638.5,4.50112]
[1745213516609,1.97215653,1638.8,1638.7,1.22057]
[1745213516811,0.00914104,1638.9,1638.8,1.2205]
[1745213517612,0.00914104,1638.9,1638.8,3.7697]
[1745213520911,4.83724104,1638.9,1638.5,4.0081]
[1745213521109,2.84085,1638.8,1638.6,3.65065]
[1745213521309,2.84085,1638.8,1638.7,1.6164]
[1745213521511,1.6203,1638.8,1638.7,2.83697]
[1745213521718,3.11604104,1638.9,1638.8,1.2205]
[1745213521916,2.27314104,1638.9,1638.8,2.9578]
[1745213522118,0.00914104,1638.9,1638.8,5.2218]
[1745213522614,0.00914104,1638.9,1638.8,10.2218]
[1745213523212,0.00914104,1638.9,1638.8,5.2218]
[1745213523720,0.00914104,1638.9,1638.8,6.0342]
[1745213524306,0.00914104,1638.9,1638.8,11.0342]
[1745213525714,1.97215653,1639.4,1639.3,1.22013]
[1745213525910,7.775406,1639.5,1639.4,1.22005]
[1745213526115,11.741406,1639.5,1639.4,3.48405]
[1745213527025,12.961386,1639.5,1639.4,2.264]
[1745213527321,12.961386,1639.5,1639.3,2.98833104]
[1745213527929,11.741406,1639.5,1639.4,1.22005]
[1745213528219,11.741406,1639.5,1639.4,2.94975]
[1745213528417,5.6507,1639.5,1639.4,2.94975]
[1745213529820,0.00914104,1639.6,1639.5,1.21998]
[1745213530020,0.00219224,1639.6,1639.5,2.05738]
[1745213530328,10.056706,1639.8,1639.7,1.21983]
[1745213530918,6.090706,1639.8,1639.7,1.21983]
[1745213531923,7.747106,1639.8,1639.7,1.21983]
[1745213532123,7.747106,1639.8,1639.7,3.48383]
[1745213532326,1.6564,1639.8,1639.7,3.48383]
[1745213535030,1e-08,1639.9,1639.8,1.21975]
[1745213535224,1e-08,1639.9,1639.8,3.78205]
[1745213535531,1e-08,1639.9,1639.8,8.78205]
[1745213536234,1e-08,1639.9,1639.8,11.04605]
[1745213539040,9.70946253,1640.6,1640.5,1.21923]
[1745213539334,7.737306,1640.6,1640.5,1.21923]
[1745213539635,1.6466,1640.6,1640.5,1.21923]
[1745213539831,0.8258,1640.8,1640.5,1.7074]
[1745213540020,0.8258,1640.8,1640.6,1.21911]
[1745213540220,1.21916,1640.6,1640.5,0.00914104]
[1745213540432,5.20616,1640.6,1640.5,0.00914104]
[1745213540634,10.20616,1640.6,1640.5,0.00914104]
[1745213541136,7.47016,1640.6,1640.5,0.00914104]
[1745213541828,3.48316,1640.6,1640.5,0.00914104]
[1745213542025,7.47016,1640.6,1640.5,0.00914104]
[1745213542321,3.987,1640.6,1640.5,1.22837104]
[1745213542526,1.21913,1640.7,1640.5,0.00914104]
[1745213542735,3.987,1640.6,1640.5,0.00914104]
[1745213543234,6.91746,1640.6,1640.5,0.00914104]
[1745213544631,5.6983,1640.6,1640.5,0.00914104]
[1745213545233,7.9623,1640.6,1640.5,0.00914104]
[1745213546335,5.6983,1640.6,1640.5,0.00914104]
[1745213547837,5.6983,1640.6,1640.5,1.22837104]
[1745213548038,5.6983,1640.6,1640.5,0.00914104]
[1745213548639,1.7113,1640.6,1640.5,0.00914104]
[1745213548839,6.5636,1640.6,1640.5,1.22837104]
[1745213550538,6.5636,1640.6,1640.5,0.00914104]
[1745213550740,7.78276,1640.6,1640.5,0.00914104]
[1745213551136,3.79676,1640.6,1640.5,0.00914104]
[1745213551444,7.78276,1640.6,1640.5,0.00914104]
[1745213552138,6.5636,1640.6,1640.5,0.00914104]
[1745213552535,1.97215653,1640.7,1640.6,1.21916]
[1745213552737,3.65205653,1640.7,1640.6,1.21916]
[1745213553541,7.63805653,1640.7,1640.6,1.21916]
[1745213553949,3.65205653,1640.7,1640.6,1.21916]
[1745213554137,7.63805653,1640.7,1640.6,1.21916]
[1745213554845,1.6799,1640.7,1640.6,1.21916]
[1745213555340,5.6659,1640.7,1640.6,1.21916]
[1745213555745,6.88503,1640.7,1640.5,2.90765104]
[1745213555931,1.716,1640.6,1640.5,1.22835104]
[1745213556137,2.5833,1640.6,1640.5,1.22835104]
[1745213556332,2.5833,1640.6,1640.5,0.00914104]
[1745213556537,7.01026,1640.6,1640.5,0.00914104]
[1745213556838,8.98241653,1640.6,1640.5,0.00914104]
[1745213557151,11.24641653,1640.6,1640.5,0.00914104]
[1745213557639,1.21938,1640.3,1640.1,3.80168]
[1745213557838,1.697,1640.2,1640.1,1.21948]
[1745213558046,3.413,1640.2,1640.1,1.21948]
[1745213558941,2.5833,1640.2,1640.1,4.42728]
[1745213560647,1.716,1640.2,1640.1,4.42728]
[1745213560945,4.8691,1640.4,1640.3,1.21938]
[1745213561846,1.21942,1640.3,1640.0,0.00914104]
[1745213562044,2.07618,1640.2,1640.0,0.00914104]
[1745213562347,1.6846,1640.1,1640.0,1.22872104]
[1745213562744,0.8567,1640.2,1640.1,1.21953]
[1745213563448,3.65675653,1640.3,1640.2,1.21946]
[1745213563650,4.51345653,1640.3,1640.2,1.21946]
[1745213564149,3.65675653,1640.3,1640.2,1.21946]
[1745213564347,1.6846,1640.3,1640.2,1.21946]
[1745213564548,4.8691,1640.4,1640.3,1.21938]
[1745213565048,4.8691,1640.4,1640.3,2.95218]
[1745213565243,6.6442,1640.4,1640.3,2.95218]
[1745213565846,0.8754,1640.5,1640.4,1.21931]
[1745213566050,4.8614,1640.5,1640.4,2.95211]
[1745213566547,6.6365,1640.5,1640.4,2.95211]
[1745213566750,5.7611,1640.5,1640.4,2.95211]
[1745213567045,1.7751,1640.5,1640.4,2.95211]
[1745213578868,1.21931,1640.4,1640.3,1.21937]
[1745213579165,2.08091,1640.4,1640.2,1.21941]
[1745213579366,2.6172,1640.3,1640.2,1.21941]
[1745213580056,2.6172,1640.3,1640.2,3.48341]
[1745213581069,2.6172,1640.3,1640.2,1.21941]
[1745213582371,2.6172,1640.3,1640.2,2.94561]
[1745213583173,2.6172,1640.3,1640.2,5.20961]
[1745213583771,2.6172,1640.3,1640.2,5.20966]
[1745213584076,2.6172,1640.3,1640.2,2.94566]
[1745213584285,1.2195,1640.2,1640.1,3.2078]
[1745213584473,2.9596,1640.2,1640.1,3.2078]
[1745213584671,2.9596,1640.2,1640.0,1.22872104]
[1745213584977,2.6164,1640.1,1640.0,1.22872104]
[1745213585179,2.6164,1640.1,1640.0,3.49272104]
[1745213594583,3.83593,1640.1,1640.0,3.49272104]
[1745213594883,2.6164,1640.1,1640.0,3.49272104]
[1745213595985,3.83593,1640.1,1640.0,3.49272104]
[1745213596185,2.6164,1640.1,1640.0,3.49272104]
[1745213596784,3.83593,1640.1,1640.0,3.49272104]
[1745213597188,2.6164,1640.1,1640.0,3.49272104]
[1745213597686,3.83593,1640.1,1640.0,3.49272104]
[1745213597883,2.6164,1640.1,1640.0,3.49272104]
[1745213599178,2.6164,1640.1,1640.0,1.22872104]
[1745213600986,3.83593,1640.1,1640.0,0.00914104]
[1745213601285,3.83593,1640.1,1640.0,1.22874104]
[1745213603786,1.7401,1640.1,1640.0,1.22874104]
[1745213604083,19.89179253,1640.3,1640.1,1.21947]
[1745213604285,1.21946,1640.2,1640.1,3.73007]
[1745213604583,2.87986,1640.2,1640.1,3.73007]
[1745213605385,2.87986,1640.2,1640.1,2.5106]
[1745213607189,2.87986,1640.2,1640.0,0.00914104]
[1745213607190,1.21953,1640.1,1640.0,0.00914104]
[1745213607384,2.99043,1640.1,1640.0,0.00914104]
[1745213607785,8.17038653,1640.1,1640.0,0.00914104]
[1745213608188,10.43438653,1640.1,1640.0,0.00914104]
[1745213609790,15.43438653,1640.1,1640.0,1e-08]
[1745213610893,10.43438653,1640.1,1640.0,1e-08]
[1745213611194,15.43438653,1640.1,1640.0,1e-08]
[1745213613590,21.52509253,1640.1,1640.0,1e-08]
[1745213615193,21.63454484,1640.1,1640.0,1e-08]
[1745213615694,1.22008,1639.4,1639.0,11.3027247]
[1745213615896,5.18502,1639.5,1639.3,2.9080612]
[1745213616096,3.965,1639.4,1639.3,2.9080612]
[1745213617803,0.00914104,1639.5,1639.4,1.22005]
[1745213618096,0.00914104,1639.5,1639.4,2.08985]
[1745213619206,0.00914104,1639.5,1639.4,4.35385]
[1745213622997,0.00914104,1639.5,1639.4,7.56165]
[1745213625603,0.00914104,1639.5,1639.4,12.56165]
[1745213628007,0.00914104,1639.5,1639.4,7.56165]
[1745213637109,0.00914104,1639.5,1639.4,4.35385]
[1745213637311,0.00914104,1639.5,1639.4,7.56165]
[1745213637609,0.00914104,1639.5,1639.4,4.35385]
[1745213637809,0.00914104,1639.5,1639.4,7.56165]
[1745213638608,0.00914104,1639.5,1639.4,4.35385]
[1745213639209,0.00914104,1639.5,1639.4,7.56165]
[1745213639410,0.00914104,1639.5,1639.4,4.35385]
[1745213639709,0.00914104,1639.5,1639.4,7.56165]
[1745213639902,0.00914104,1639.5,1639.4,4.35385]
[1745213640209,0.00914104,1639.5,1639.4,7.56165]
[1745213641010,0.00914104,1639.5,1639.4,4.35385]
[1745213641514,0.00914104,1639.5,1639.4,7.56165]
[1745213642012,0.00914104,1639.5,1639.4,4.35385]
[1745213642214,0.00914104,1639.5,1639.4,7.56165]
[1745213655222,1.72564104,1639.5,1639.4,7.56165]
[1745213658722,1.72564104,1639.5,1639.4,9.33635]
[1745213669841,1.72564104,1639.5,1639.4,6.12855]
[1745213670043,1.72564104,1639.5,1639.4,9.33635]
[1745213670238,1.72564104,1639.5,1639.4,17.4312747]
[1745213670947,0.00914104,1639.5,1639.4,17.4312747]
[1745213673237,0.00914104,1639.5,1639.4,26.91678342]
[1745213676341,0.00914104,1639.5,1639.4,17.4312747]
[1745213679050,0.00914104,1639.5,1639.4,14.2234747]
[1745213679346,0.00914104,1639.5,1639.4,17.4312747]
[1745213680847,1.04e-06,1639.5,1639.4,17.4312747]
[1745213681046,1.04e-06,1639.5,1639.4,22.4312747]
[1745213683951,1.04e-06,1639.5,1639.4,39.86607893]
[1745213684453,1.04e-06,1639.5,1639.4,34.86607893]
[1745213687354,1.04e-06,1639.5,1639.4,31.02637677]
[1745213688255,1.6234,1639.8,1639.7,1.21983]
[1745213688455,1.6164512,1639.8,1639.7,4.42763]
[1745213689155,1.6164512,1639.8,1639.7,8.44813]
[1745213693558,1.6164512,1639.8,1639.7,6.69163]
[1745213698159,3.8804512,1639.8,1639.7,4.42763]
[1745213701063,8.8804512,1639.8,1639.7,4.42763]
[1745213703162,8.8804512,1639.8,1639.7,1.21983]
[1745213703464,3.8804512,1639.8,1639.7,1.21983]
[1745213707056,3.8804512,1639.8,1639.7,2.98943]
[1745213709059,2.264,1639.8,1639.7,2.98943]
[1745213711263,2.264,1639.8,1639.7,6.19723]
[1745213713163,2.264,1639.8,1639.7,2.98943]
[1745213713365,2.264,1639.8,1639.7,6.19723]
[1745213723567,3.1144,1639.8,1639.7,6.19723]
[1745213723971,2.264,1639.8,1639.7,6.19723]
[1745213725171,2.264,1639.8,1639.7,2.98943]
[1745213725372,2.264,1639.8,1639.7,6.19723]
[1745213725759,3.9419,1639.8,1639.7,6.19723]
[1745213730877,3.9419,1639.8,1639.7,2.98943]
[1745213731173,3.9419,1639.8,1639.7,6.19723]
[1745213731474,3.9419,1639.8,1639.7,4.42763]
[1745213731875,3.9419,1639.8,1639.7,6.19543]
[1745213732878,3.9419,1639.8,1639.7,2.98763]
[1745213733175,3.9419,1639.8,1639.7,6.19543]
[1745213733978,3.9419,1639.8,1639.7,2.98763]
[1745213734175,3.9419,1639.8,1639.7,6.19543]
[1745213739270,3.9419,1639.8,1639.7,4.42763]
[1745213747789,3.9419,1639.8,1639.7,1.21983]
[1745213747989,3.9419,1639.8,1639.7,4.42763]
[1745213749196,3.9419,1639.8,1639.7,5.28013]
[1745213753599,3.9419,1639.8,1639.7,2.07233]
[1745213753897,3.9419,1639.8,1639.7,5.28013]
[1745213756595,3.9419,1639.8,1639.7,4.42763]
[1745213758091,1.21983,1639.7,1639.6,0.0145]
[1745213758291,6.91143,1639.7,1639.6,0.0145]
[1745213758593,1.2199,1639.6,1639.5,8.1235128]
[1745213758793,3.691,1639.6,1639.5,8.1235128]
[1745213759097,10.955,1639.6,1639.5,8.1380128]
[1745213759405,10.955,1639.6,1639.5,0.0145]
[1745213760588,6.70725653,1639.6,1639.5,1.23448]
[1745213762498,10.66725653,1639.6,1639.5,1.23448]
[1745213767308,6.70725653,1639.6,1639.5,1.23448]
[1745213767497,10.66725653,1639.6,1639.5,1.23448]
[1745213769616,10.66825653,1639.6,1639.5,1.23448]